bitfinex-derivatives/quotes_BNBF0:USTF0_20250630
["timestamp","ask_amount","ask_price","bid_price","bid_amount"]
[1751284713665,0.26590766,655.09,653.99,1.1186821]
[1751284713867,0.26590766,655.09,653.93,1.917]
[1751284714064,0.26590766,655.09,653.94,1.1186716]
[1751284714268,0.26590766,655.09,653.95,1.1186716]
[1751284714468,0.26590766,655.09,653.96,1.1186716]
[1751284714664,0.26590766,655.09,653.97,1.1186716]
[1751284714866,0.26590766,655.09,653.98,1.1186716]
[1751284715065,0.26590766,655.09,653.99,1.1186716]
[1751284715264,0.26590766,655.09,653.93,1.917]
[1751284715469,0.26590766,655.09,653.94,1.1186594]
[1751284715769,0.26590766,655.09,653.95,1.1186594]
[1751284715969,0.26590766,655.09,653.96,1.1186594]
[1751284716169,0.26590766,655.09,653.97,1.1186594]
[1751284716369,0.26590766,655.09,653.98,1.1186594]
[1751284716567,0.26590766,655.09,653.99,1.1186594]
[1751284716765,0.26590766,655.09,653.93,1.917]
[1751284716971,0.26590766,655.09,653.94,1.1191158]
[1751284717171,0.26590766,655.09,653.95,1.1191158]
[1751284717371,0.26590766,655.09,653.96,1.1191158]
[1751284717567,0.26590766,655.09,653.97,1.1191158]
[1751284717869,0.26590766,655.09,653.98,1.1191158]
[1751284718070,0.26590766,655.09,653.99,1.1191158]
[1751284718268,0.26590766,655.09,653.93,1.917]
[1751284718474,0.26590766,655.09,653.94,1.1191181]
[1751284718772,3.8085453,654.88,653.95,1.1191181]
[1751284719067,3.8085453,654.88,653.96,1.1191181]
[1751284719268,3.8085453,654.88,653.97,1.1191181]
[1751284719471,3.8085453,654.88,653.98,1.1191181]
[1751284719668,3.8085453,654.88,653.99,1.1191181]
[1751284719972,3.8085453,654.88,653.93,1.917]
[1751284720166,3.8085453,654.88,653.94,1.1191221]
[1751284720370,3.8085453,654.88,653.95,1.1191221]
[1751284720568,3.8085453,654.88,653.96,1.1191221]
[1751284720871,3.8085453,654.88,653.97,1.1191221]
[1751284721072,3.8085453,654.9,653.98,1.1191221]
[1751284721271,3.8085453,654.9,653.99,1.1191221]
[1751284721472,3.8085453,654.9,653.93,1.917]
[1751284721672,3.8085453,654.9,653.94,1.1191263]
[1751284721871,3.8085453,654.9,653.95,1.1191263]
[1751284722066,3.8085453,654.89,653.96,1.1191263]
[1751284722271,3.8085453,654.89,653.97,1.1191263]
[1751284722469,3.8085453,654.89,653.98,1.1191263]
[1751284722672,3.8085453,654.89,653.99,1.1191263]
[1751284722872,3.8085453,654.89,653.93,1.917]
[1751284723075,3.8085453,654.89,653.94,1.1191308]
[1751284723269,3.8085453,654.89,653.95,1.1191308]
[1751284723471,3.8085453,654.89,653.96,1.1191308]
[1751284723771,3.8085453,654.86,653.97,1.1191308]
[1751284723974,3.8085453,654.86,653.98,1.1191308]
[1751284724274,3.8085453,655.02,653.99,1.1191308]
[1751284724471,3.8085453,655.02,653.93,1.917]
[1751284724671,3.8085453,655.01,653.94,1.1191447]
[1751284724969,3.8085453,655.01,653.95,1.1191447]
[1751284725169,3.8085453,655.03,653.96,1.1191447]
[1751284725471,3.8085453,655.03,653.97,1.1191447]
[1751284725671,3.8085453,655.03,653.98,1.1191447]
[1751284725971,3.8085453,655.03,653.99,1.1191447]
[1751284726174,3.8085453,655.03,653.93,1.917]
[1751284726374,3.8085453,655.03,653.94,1.1191674]
[1751284726574,3.8085453,655.03,653.95,1.1191674]
[1751284726771,3.8085453,655.03,653.96,1.1191674]
[1751284727071,3.8085453,655.03,653.97,1.1191674]
[1751284727272,3.8085453,655.03,653.98,1.1191674]
[1751284727471,3.8085453,655.03,653.99,1.1191674]
[1751284727673,3.8085453,655.03,653.93,1.917]
[1751284727869,3.8085453,655.03,653.94,1.11918989]
[1751284728075,3.8085453,655.03,653.95,1.11918989]
[1751284728276,3.8085453,655.04,653.96,1.11918989]
[1751284728473,3.8085453,655.04,653.97,1.11918989]
[1751284728773,3.8085453,655.04,653.98,1.11918989]
[1751284728972,3.8085453,655.04,653.99,1.11918989]
[1751284729175,3.8085453,655.04,653.76,1.1451435]
[1751284729471,3.8085453,654.97,653.77,1.1192229]
[1751284729776,3.8085453,654.97,653.78,1.1192229]
[1751284729975,3.8085453,654.97,653.79,1.1192229]
[1751284730275,3.8085453,654.98,653.8,1.1192229]
[1751284730475,3.8085453,654.98,653.81,1.1192229]
[1751284730676,3.8085453,654.98,653.82,1.1192229]
[1751284730874,3.8085453,654.98,653.83,1.1192229]
[1751284731072,3.8085453,654.98,653.84,1.1192229]
[1751284731274,3.8085453,654.98,653.85,1.1192229]
[1751284731580,3.8085453,654.98,653.86,1.1192229]
[1751284731774,3.8085453,654.98,653.87,1.1192229]
[1751284731976,3.8085453,654.98,653.88,1.1192229]
[1751284732178,3.8085453,654.98,653.89,1.1192229]
[1751284732377,3.8085453,654.98,653.9,1.1192229]
[1751284732578,3.8085453,654.98,653.91,1.1192229]
[1751284732781,3.8085453,654.98,653.92,1.1192229]
[1751284733078,3.8085453,654.98,653.93,1.1192229]
[1751284733278,3.8085453,654.98,653.94,1.1192229]
[1751284733578,3.8085453,654.98,653.95,1.1192229]
[1751284733778,3.8085453,654.98,653.96,1.1192229]
[1751284733988,3.8085453,655.0,653.97,1.1192229]
[1751284734182,3.8085453,655.0,653.98,1.1192229]
[1751284734479,3.8085453,654.92,653.99,1.1192229]
[1751284734682,3.8085453,654.92,653.81,2.292]
[1751284734979,3.8085453,654.92,653.82,1.1193333]
[1751284735184,3.8085453,654.92,653.83,1.1193333]
[1751284735378,3.8085453,654.91,653.84,1.1193333]
[1751284735582,3.8085453,654.91,653.85,1.1193333]
[1751284735781,3.8085453,654.91,653.86,1.1193333]
[1751284735978,3.8085453,654.91,653.87,1.1193333]
[1751284736183,3.8085453,654.91,653.81,2.292]
[1751284736184,3.8085453,654.91,653.88,1.1193333]
[1751284736485,3.8085453,654.9,653.89,1.1193333]
[1751284736682,3.8085453,654.9,653.9,1.1193333]
[1751284736985,3.8085453,654.92,653.91,1.1193333]
[1751284737183,3.8085453,654.92,653.92,1.1193333]
[1751284737383,3.8085453,654.93,653.93,1.1193333]
[1751284737586,3.8085453,654.93,653.94,1.1193333]
[1751284737786,3.8085453,654.93,653.95,1.1193333]
[1751284737986,3.8085453,654.92,653.96,1.1193333]
[1751284738185,3.8085453,654.92,653.97,1.1193333]
[1751284738392,3.8085453,654.92,653.98,1.1193333]
[1751284738589,3.8085453,654.89,653.99,1.1193333]
[1751284738786,3.8085453,654.89,654.0,1.1193333]
[1751284738984,3.8085453,654.89,653.81,2.292]
[1751284739290,3.8085453,654.89,653.82,1.1194585]
[1751284739485,3.8085453,654.89,653.83,1.1194585]
[1751284739686,3.8085453,654.89,653.84,1.1194585]
[1751284739891,3.8085453,654.9,653.85,1.1194585]
[1751284740091,3.8085453,654.9,653.86,1.1194585]
[1751284740393,3.8085453,654.9,653.87,1.1194585]
[1751284740591,3.8085453,654.89,653.88,1.1194585]
[1751284740887,3.8085453,654.89,653.89,1.1194585]
[1751284741088,3.8085453,654.89,653.9,1.1194585]
[1751284741287,3.8085453,654.89,653.91,1.1194585]
[1751284741487,3.8085453,654.89,653.81,2.292]
[1751284741488,3.8085453,654.89,653.92,1.1194585]
[1751284741790,3.8085453,654.89,653.93,1.1194585]
[1751284741986,3.8085453,655.07,653.94,1.1194585]
[1751284742288,3.8085453,655.07,653.95,1.1194585]
[1751284742488,3.8085453,655.07,653.96,1.1194585]
[1751284742690,3.8085453,655.07,653.97,1.1194585]
[1751284742889,3.8085453,655.07,653.98,1.1194585]
[1751284743091,3.8085453,655.07,653.99,1.1194585]
[1751284743291,3.8085453,655.07,654.0,1.1194585]
[1751284743491,3.8085453,655.06,654.01,1.1194585]
[1751284743695,3.8085453,655.06,653.81,2.292]
[1751284743889,3.8085453,655.06,653.82,1.11966576]
[1751284744094,3.8085453,655.06,653.83,1.11966576]
[1751284744291,3.8085453,655.06,653.84,1.11966576]
[1751284744493,3.8085453,655.06,653.85,1.11966576]
[1751284744791,3.8085453,655.06,653.86,1.11966576]
[1751284745091,3.8085453,655.06,653.87,1.11966576]
[1751284745294,3.8085453,655.06,653.88,1.11966576]
[1751284745490,3.8085453,655.06,653.89,1.11966576]
[1751284745792,3.8085453,655.06,653.9,1.11966576]
[1751284745994,3.8085453,655.06,653.91,1.11966576]
[1751284746192,3.8085453,655.06,653.92,1.11966576]
[1751284746391,3.8085453,655.06,653.93,1.11966576]
[1751284746695,3.8085453,655.05,653.94,1.11966576]
[1751284746896,3.8085453,655.05,653.95,1.11966576]
[1751284747097,0.26590766,655.09,653.96,1.11966576]
[1751284747296,0.26590766,655.09,653.97,1.11966576]
[1751284747495,0.26590766,655.09,653.98,1.11966576]
[1751284747695,0.26590766,655.09,653.99,1.11966576]
[1751284747894,0.26590766,655.09,654.0,1.11966576]
[1751284748093,0.26590766,655.09,654.01,1.11966576]
[1751284748295,0.26590766,655.09,654.02,1.11966576]
[1751284748498,0.26590766,655.09,653.81,2.292]
[1751284748697,0.26590766,655.09,653.82,1.1191718]
[1751284748897,0.26590766,655.09,653.83,1.1191718]
[1751284749095,0.26590766,655.09,653.84,1.1191718]
[1751284749299,0.26590766,655.09,653.85,1.1191718]
[1751284749496,0.26590766,655.09,653.86,1.1191718]
[1751284749796,0.26590766,655.09,653.87,1.1191718]
[1751284749997,0.26590766,655.09,653.88,1.1191718]
[1751284750297,0.26590766,655.09,653.89,1.1191718]
[1751284750497,0.26590766,655.09,653.9,1.1191718]
[1751284750797,0.26590766,655.09,653.91,1.1191718]
[1751284750998,0.26590766,655.09,653.92,1.1191718]
[1751284751200,0.26590766,655.09,653.93,1.1191718]
[1751284751398,0.26590766,655.09,653.94,1.1191718]
[1751284751596,0.26590766,655.09,653.95,1.1191718]
[1751284751901,0.26590766,655.09,653.96,1.1191718]
[1751284752100,0.26590766,655.09,653.97,1.1191718]
[1751284752297,0.26590766,655.09,653.98,1.1191718]
[1751284752597,0.26590766,655.09,653.99,1.1191718]
[1751284752800,0.26590766,655.09,654.0,1.1191718]
[1751284752999,0.26590766,655.09,654.01,1.1191718]
[1751284753200,0.26590766,655.09,654.02,1.1191718]
[1751284753402,0.26590766,655.09,654.03,1.1191718]
[1751284753699,0.26590766,655.09,653.99,1.478]
[1751284753901,0.26590766,655.09,654.0,1.1195392]
[1751284754100,0.26590766,655.09,654.01,1.1195392]
[1751284754304,0.26590766,655.09,653.99,1.478]
[1751284754305,0.26590766,655.09,654.02,1.1195392]
[1751284754505,0.26590766,655.09,654.03,1.1195392]
[1751284754700,0.26590766,655.09,654.04,1.1195392]
[1751284754905,0.26590766,655.09,654.05,1.1195392]
[1751284755103,0.26590766,655.09,654.06,1.1195392]
[1751284755305,0.26590766,655.09,654.07,1.1195392]
[1751284755501,0.26590766,655.09,654.08,1.1195392]
[1751284755702,0.26590766,655.09,654.09,1.1195392]
[1751284755904,0.26590766,655.09,654.1,1.1195392]
[1751284756104,0.26590766,655.09,654.11,1.1195392]
[1751284756303,0.26590766,655.09,654.12,1.1195392]
[1751284756505,0.26590766,655.09,653.99,1.478]
[1751284756807,0.26590766,655.09,654.0,1.1183598]
[1751284757007,0.26590766,655.09,654.01,1.1183598]
[1751284757207,0.26590766,655.09,654.02,1.1183598]
[1751284757406,0.26590766,655.09,654.03,1.1183598]
[1751284757603,0.26590766,655.09,654.04,1.1183598]
[1751284757806,0.26590766,655.09,654.05,1.1183598]
[1751284758006,0.26590766,655.09,654.06,1.1183598]
[1751284758211,0.26590766,655.09,654.07,1.1183598]
[1751284758512,0.26590766,655.09,654.08,1.1183598]
[1751284758711,0.26590766,655.09,654.09,1.1183598]
[1751284758908,0.26590766,655.09,654.1,1.1183598]
[1751284759111,0.26590766,655.09,654.11,1.1183598]
[1751284759312,0.26590766,655.09,653.99,1.478]
[1751284759607,0.26590766,655.09,654.0,1.1177374]
[1751284759807,0.26590766,655.09,654.01,1.1177374]
[1751284760008,0.26590766,655.09,654.02,1.1177374]
[1751284760208,0.26590766,655.09,654.03,1.1177374]
[1751284760408,0.26590766,655.09,654.04,1.1177374]
[1751284760711,0.26590766,655.09,654.05,1.1177374]
[1751284760908,0.26590766,655.09,654.06,1.1177374]
[1751284761108,0.26590766,655.09,654.07,1.1177374]
[1751284761309,0.26590766,655.09,654.08,1.1177374]
[1751284761508,0.26590766,655.09,654.09,1.1177374]
[1751284761812,0.26590766,655.09,654.1,1.1174489]
[1751284762012,0.26590766,655.09,653.99,1.478]
[1751284762211,0.26590766,655.09,654.0,1.1174489]
[1751284762411,0.26590766,655.09,654.01,1.1174489]
[1751284762607,0.26590766,655.09,654.02,1.1174489]
[1751284762812,0.26590766,655.09,654.03,1.1174489]
[1751284763010,0.26590766,655.09,654.04,1.1174489]
[1751284763210,0.26590766,655.09,654.05,1.1174489]
[1751284763413,0.26590766,655.09,654.06,1.1174489]
[1751284763611,0.26590766,655.09,654.07,1.1174489]
[1751284763812,0.26590766,655.09,654.08,1.1174489]
[1751284764012,0.26590766,655.09,654.09,1.1174489]
[1751284764216,0.26590766,655.09,653.99,1.478]
[1751284764412,0.26590766,655.09,654.0,1.1171133]
[1751284764615,0.26590766,655.09,654.01,1.1171133]
[1751284764817,0.26590766,655.09,654.02,1.1171133]
[1751284765016,0.26590766,655.09,654.03,1.1171133]
[1751284765314,0.26590766,655.09,654.04,1.1171133]
[1751284765615,0.26590766,655.09,654.05,1.1171133]
[1751284765819,0.26590766,655.09,654.06,1.1171133]
[1751284766016,0.26590766,655.09,654.07,1.1171133]
[1751284766214,0.26590766,655.09,653.99,1.478]
[1751284766519,0.26590766,655.09,654.0,1.1169826]
[1751284766719,0.26590766,655.09,654.01,1.1169826]
[1751284767018,0.26590766,655.09,654.02,1.1169826]
[1751284767215,0.26590766,655.09,654.03,1.1169826]
[1751284767415,0.26590766,655.09,654.04,1.1169826]
[1751284767616,0.26590766,655.09,654.05,1.1169826]
[1751284767818,0.26590766,655.09,654.06,1.1169826]
[1751284768019,0.26590766,655.09,654.07,1.1169826]
[1751284768220,0.26590766,655.09,653.99,1.478]
[1751284768419,0.26590766,655.09,654.0,1.1168566]
[1751284768715,0.26590766,655.09,654.01,1.1168566]
[1751284768915,0.26590766,655.09,654.02,1.1168566]
[1751284769120,0.26590766,655.09,654.03,1.1168566]
[1751284769420,0.26590766,655.09,654.04,1.1168566]
[1751284769621,0.26590766,655.09,653.99,1.478]
[1751284769622,0.26590766,655.09,654.05,1.1168566]
[1751284769816,0.26590766,655.09,654.06,1.1168566]
[1751284770020,0.26590766,655.09,653.99,1.478]
[1751284770218,0.26590766,655.09,654.0,1.116801]
[1751284770415,0.26590766,655.09,654.01,1.116801]
[1751284770717,0.26590766,655.09,654.02,1.116801]
[1751284770919,0.26590766,655.09,654.03,1.116801]
[1751284771115,0.26590766,655.09,654.04,1.116801]
[1751284771315,0.26590766,655.09,654.05,1.116801]
[1751284771619,0.26590766,655.09,654.06,1.116801]
[1751284771817,0.26590766,655.09,653.99,1.478]
[1751284772019,0.26590766,655.09,654.0,1.1167221]
[1751284772319,0.26590766,655.09,654.01,1.1167221]
[1751284772517,0.26590766,655.09,654.02,1.1167221]
[1751284772716,0.26590766,655.09,654.03,1.1167221]
[1751284772916,0.26590766,655.09,654.04,1.1167221]
[1751284773116,0.26590766,655.09,654.05,1.1167221]
[1751284773319,0.26590766,655.09,654.06,1.1167221]
[1751284773518,0.26590766,655.09,653.99,1.478]
[1751284773717,0.26590766,655.09,654.0,1.1166446]
[1751284773920,0.26590766,655.09,654.01,1.1166446]
[1751284774122,0.26590766,655.09,654.02,1.1166446]
[1751284774319,0.26590766,655.09,654.03,1.1166446]
[1751284774523,0.26590766,655.09,654.04,1.1166446]
[1751284774723,0.26590766,655.09,654.05,1.1166446]
[1751284774923,0.26590766,655.09,654.06,1.1166446]
[1751284775219,0.26590766,655.09,653.99,1.478]
[1751284775423,0.26590766,655.09,654.0,1.1165825]
[1751284775624,0.26590766,655.09,654.01,1.1165825]
[1751284775921,0.26590766,655.09,654.02,1.1165825]
[1751284776121,0.26590766,655.09,654.03,1.1165825]
[1751284776321,0.26590766,655.09,654.04,1.1165825]
[1751284776522,0.26590766,655.09,654.05,1.1165825]
[1751284776719,0.26590766,655.09,654.06,1.1165825]
[1751284776927,0.26590766,655.09,653.99,1.478]
[1751284777222,0.26590766,655.09,654.0,1.1165019]
[1751284777420,0.26590766,655.09,654.01,1.1165019]
[1751284777623,0.26590766,655.09,654.02,1.1165019]
[1751284777823,0.26590766,655.09,654.03,1.1165019]
[1751284778125,0.26588429,654.83,654.04,1.1165019]
[1751284778321,0.26588429,654.83,654.05,1.1165019]
[1751284778520,0.26588429,654.83,654.06,1.1165019]
[1751284778721,0.26588429,654.83,653.99,1.478]
[1751284778927,0.26588429,654.83,654.0,1.1164611]
[1751284779125,0.26588429,654.83,654.01,1.1164611]
[1751284779324,0.26588429,654.83,654.02,1.1164611]
[1751284779624,0.26588429,654.83,654.03,1.1164611]
[1751284779822,0.26588429,654.83,654.04,1.1164611]
[1751284780022,0.26588429,654.83,654.05,1.1164611]
[1751284780226,0.26588429,654.83,653.99,1.478]
[1751284780424,0.26588429,654.83,654.0,1.1164338]
[1751284780627,0.26588429,654.83,654.01,1.1164338]
[1751284780829,0.26588429,654.83,654.02,1.1164338]
[1751284781028,0.26588429,654.83,654.03,1.1164338]
[1751284781229,0.26588429,654.83,654.04,1.1164338]
[1751284781428,0.26588429,654.83,654.05,1.1164338]
[1751284781626,0.26588429,654.83,653.99,1.478]
[1751284781831,0.26588429,654.83,654.0,1.1164252]
[1751284782031,0.26588429,654.83,654.01,1.1164252]
[1751284782229,0.26588429,654.83,654.02,1.1164252]
[1751284782542,0.26588429,654.83,654.03,1.1164252]
[1751284782733,0.26588429,654.83,654.04,1.1164252]
[1751284782929,0.26588429,654.83,654.05,1.1164252]
[1751284783134,0.26588429,654.83,653.99,1.478]
[1751284783332,0.26588429,654.83,654.0,1.1164176]
[1751284783634,0.26588429,654.83,654.01,1.1164176]
[1751284783929,0.26588429,654.83,654.02,1.1164176]
[1751284784134,0.26588429,654.83,654.03,1.1164176]
[1751284784333,0.26588429,654.83,654.04,1.1164176]
[1751284784533,0.26588429,654.83,654.05,1.1164176]
[1751284784733,0.26588429,654.83,653.99,1.478]
[1751284784930,0.26588429,654.83,654.0,1.1164191]
[1751284785235,0.26588429,654.83,654.01,1.1164191]
[1751284785434,0.26588429,654.83,654.02,1.1164191]
[1751284785633,0.26588429,654.83,654.03,1.1164191]
[1751284785828,0.26588429,654.83,654.04,1.1164191]
[1751284786028,0.26588429,654.83,654.05,1.1164191]
[1751284786330,0.26588429,654.83,653.99,1.478]
[1751284786531,0.26588429,654.83,654.0,1.116435]
[1751284786730,0.26588429,654.83,654.01,1.116435]
[1751284786930,0.26588429,654.83,654.02,1.116435]
[1751284787132,0.26588429,654.83,654.03,1.116435]
[1751284787331,0.26588429,654.83,654.04,1.116435]
[1751284787531,0.26588429,654.83,654.05,1.116435]
[1751284787736,0.26588429,654.83,653.99,1.478]
[1751284788035,0.26588429,654.83,654.0,1.1164505]
[1751284788231,0.26588429,654.83,654.01,1.1164505]
[1751284788431,0.26588429,654.83,654.02,1.1164505]
[1751284788636,0.26588429,654.83,654.03,1.1164505]
[1751284788836,0.26588429,654.83,654.04,1.1164505]
[1751284789035,0.26588429,654.83,654.05,1.1164505]
[1751284789235,0.26588429,654.83,653.99,1.478]
[1751284789430,0.26588429,654.83,654.0,1.1164877]
[1751284789635,0.26588429,654.83,654.01,1.1164877]
[1751284789931,0.26588429,654.83,654.02,1.1164877]
[1751284790130,0.26588429,654.83,654.03,1.1164877]
[1751284790337,0.26588429,654.83,654.04,1.1164877]
[1751284790532,0.26588429,654.83,654.05,1.1164877]
[1751284790736,0.26588429,654.83,654.06,1.1164877]
[1751284790934,0.26588429,654.83,653.99,1.478]
[1751284791237,0.26588429,654.83,654.0,1.116514]
[1751284791437,0.26588429,654.83,654.01,1.116514]
[1751284791635,0.26588429,654.83,654.02,1.116514]
[1751284791833,0.26588429,654.83,654.03,1.116514]
[1751284792138,0.26588429,654.83,654.04,1.116514]
[1751284792335,0.26588429,654.83,654.05,1.116514]
[1751284792633,0.26588429,654.83,654.06,1.116514]
[1751284792836,0.26588429,654.83,653.99,1.478]
[1751284793037,0.26588429,654.83,654.0,1.1165731]
[1751284793240,0.26588429,654.83,654.01,1.1165731]
[1751284793535,0.26588429,654.83,654.02,1.1165731]
[1751284793739,0.26588429,654.83,654.03,1.1165731]
[1751284793940,0.26588429,654.83,654.04,1.1165731]
[1751284794134,0.26588429,654.83,654.05,1.1165731]
[1751284794336,0.26588429,654.83,653.99,1.478]
[1751284794337,0.26588429,654.83,654.06,1.1165731]
[1751284794536,0.26588429,654.83,653.99,1.478]
[1751284794838,0.26588429,654.83,654.0,1.1166536]
[1751284795036,0.26588429,654.83,654.01,1.1166536]
[1751284795240,0.26588429,654.83,654.02,1.1166536]
[1751284795436,0.26588429,654.83,654.03,1.1166536]
[1751284795639,0.26588429,654.83,654.04,1.1166536]
[1751284795842,0.26588429,654.83,654.05,1.1166536]
[1751284796041,0.26588429,654.83,654.06,1.1166536]
[1751284796341,0.26588429,654.83,653.99,1.478]
[1751284796541,0.26588429,654.83,654.0,1.116746]
[1751284796741,0.26588429,654.83,654.01,1.116746]
[1751284796941,0.26588429,654.83,654.02,1.116746]
[1751284797239,0.26588429,654.83,654.03,1.116746]
[1751284797444,0.26588429,654.83,654.04,1.116746]
[1751284797644,0.26588429,654.83,654.05,1.116746]
[1751284797944,0.26588429,654.83,654.06,1.116746]
[1751284798142,0.26588429,654.83,653.99,1.478]
[1751284798340,0.26588429,654.83,654.0,1.1168506]
[1751284798541,0.26588429,654.83,654.01,1.1168506]
[1751284798739,0.26588429,654.83,654.02,1.1168506]
[1751284798940,0.26588429,654.83,654.03,1.1168506]
[1751284799142,0.26588429,654.83,654.04,1.1168506]
[1751284799341,0.26588429,654.83,654.05,1.1168506]
[1751284799540,0.26588429,654.83,654.06,1.1168506]
[1751284799743,0.26588429,654.83,654.07,1.1168506]
[1751284799941,0.26588429,654.83,653.99,1.478]
[1751284800245,0.26588429,654.83,654.0,1.1169103]
[1751284800443,0.26588429,654.83,654.01,1.1169103]
[1751284800745,0.26588429,654.83,654.02,1.1169103]
[1751284801045,0.26588429,654.83,654.03,1.1169103]
[1751284801245,0.26588429,654.83,654.04,1.1169103]
[1751284801444,0.26588429,654.83,654.05,1.1169103]
[1751284801645,0.26588429,654.83,654.06,1.1169103]
[1751284801844,0.26588429,654.83,654.07,1.1169103]
[1751284802045,0.26588429,654.83,654.08,1.1169103]
[1751284802246,0.26588429,654.83,654.09,1.1169103]
[1751284802546,0.26588429,654.83,654.1,1.1169103]
[1751284802747,0.26588429,654.83,654.11,1.1169103]
[1751284803046,0.26588429,654.83,654.12,1.1169103]
[1751284803241,0.26588429,654.83,654.13,1.1169103]
[1751284803439,0.26588429,654.83,654.14,1.1169103]
[1751284803643,0.26588429,654.83,654.15,1.1169103]
[1751284803841,0.26588429,654.83,654.16,1.1169103]
[1751284804046,0.26588429,654.83,653.92,1.1451435]
[1751284804242,0.26588429,654.83,653.93,1.1172233]
[1751284804441,0.26588429,654.83,653.94,1.1172233]
[1751284804642,0.26588429,654.83,653.95,1.1172233]
[1751284804844,0.26588429,654.83,653.96,1.1172233]
[1751284805043,0.26588429,654.83,653.97,1.1172233]
[1751284805245,0.26588429,654.83,653.98,1.1172233]
[1751284805446,0.26588429,654.83,653.99,1.1172233]
[1751284805646,0.26588429,654.83,654.0,1.1172233]
[1751284805845,0.26588429,654.83,654.01,1.1172233]
[1751284806043,0.26588429,654.83,654.02,1.1172233]
[1751284806248,0.26588429,654.83,653.97,1.533]
[1751284806249,0.26588429,654.83,654.03,1.1172233]
[1751284806449,0.26588429,654.83,654.04,1.1172233]
[1751284806645,0.26588429,654.83,654.05,1.1172233]
[1751284806945,0.26588429,654.83,654.06,1.1172233]
[1751284807145,0.26588429,654.83,654.07,1.1172233]
[1751284807349,0.26588429,654.83,654.08,1.1172233]
[1751284807548,0.26588429,654.83,654.09,1.1172233]
[1751284807748,0.26588429,654.83,654.1,1.1172233]
[1751284807945,0.26588429,654.83,654.11,1.1172233]
[1751284808146,0.26588429,654.83,654.12,1.1172233]
[1751284808350,0.26588429,654.83,654.13,1.1172233]
[1751284808551,0.26588429,654.83,654.14,1.1172233]
[1751284808851,0.26588429,654.83,654.15,1.1172233]
[1751284809045,0.26588429,654.83,654.16,1.1172233]
[1751284809250,0.26588429,654.83,654.17,1.1172233]
[1751284809448,0.26588429,654.83,654.18,1.1172233]
[1751284809650,0.26588429,654.83,654.19,1.1172233]
[1751284809851,0.26588429,654.83,653.97,1.533]
[1751284810052,0.26588429,654.83,653.98,1.1179354]
[1751284810248,0.26588429,654.83,653.99,1.1179354]
[1751284810552,0.26588429,654.83,654.0,1.1179354]
[1751284810753,0.26588429,654.83,654.01,1.1179354]
[1751284811052,0.26588429,654.83,654.02,1.1179354]
[1751284811352,0.26588429,654.83,654.03,1.1179354]
[1751284811546,0.26588429,654.83,654.04,1.1179354]
[1751284811747,0.26588429,654.83,654.05,1.1179354]
[1751284813950,0.26588429,654.83,654.16,1.1179354]
[1751284814148,0.26588429,654.83,654.17,1.1179354]
[1751284814352,0.26588429,654.83,654.18,1.1179354]
[1751284814552,0.26588429,654.83,654.19,1.1179354]
[1751284814849,0.26588429,654.83,654.2,1.1179354]
[1751284815049,0.26588429,654.83,654.21,1.1179354]
[1751284815251,0.26588429,654.83,654.22,1.1179354]
[1751284815454,0.26588429,654.83,653.97,1.533]
[1751284815652,0.26588429,654.83,653.98,1.1193418]
[1751284815852,0.26588429,654.83,653.97,1.533]
[1751284815853,0.26588429,654.83,653.99,1.1193418]
[1751284816155,0.26588429,654.83,654.0,1.1193418]
[1751284816353,0.26588429,654.83,654.01,1.1193418]
[1751284816553,0.26588429,654.83,654.02,1.1193418]
[1751284816753,0.26588429,654.83,654.03,1.1193418]
[1751284817055,0.26588429,654.83,654.04,1.1193418]
[1751284817250,0.26588429,654.83,654.05,1.1193418]
[1751284817455,0.26588429,654.83,654.06,1.1193418]
[1751284817754,0.26588429,654.83,654.07,1.1193418]
[1751284817954,0.26588429,654.83,654.08,1.1193418]
[1751284818152,0.26588429,654.83,654.09,1.1193418]
[1751284818357,0.26588429,654.83,653.97,1.533]
[1751284818358,0.26588429,654.83,654.1,1.1193418]
[1751284818655,0.26588429,654.83,654.11,1.1193418]
[1751284818853,0.26588429,654.83,654.12,1.1193418]
[1751284819053,0.26588429,654.83,654.13,1.1193418]
[1751284819353,0.26588429,654.83,654.14,1.1193418]
[1751284819556,0.26588429,654.83,654.15,1.1193418]
[1751284819753,0.26588429,654.83,654.16,1.1193418]
[1751284819953,0.26588429,654.83,654.17,1.1193418]
[1751284820154,0.26588429,654.83,654.18,1.1193418]
[1751284820458,0.26588429,654.83,654.19,1.1193418]
[1751284820760,0.26588429,654.83,654.2,1.1193418]
[1751284820958,0.26588429,654.83,654.21,1.1193418]
[1751284821154,0.26588429,654.83,654.22,1.1193418]
[1751284821354,0.26588429,654.83,654.23,1.1193418]
[1751284821559,0.26588429,654.83,653.97,1.533]
[1751284821760,0.26588429,654.83,653.98,1.1193637]
[1751284822055,0.26588429,654.83,653.99,1.1193637]
[1751284822260,0.26588429,654.83,654.0,1.1193637]
[1751284822557,0.26588429,654.83,654.01,1.1193637]
[1751284822760,0.26588429,654.83,654.02,1.1193637]
[1751284822956,3.8085453,655.53,654.03,1.1193637]
[1751284823159,3.8085453,655.53,654.04,1.1193637]